[Event "*** MasterClass Titled Tuesday Blitz"]
[Site "Chess.com"]
[Date "2017.12.12"]
[Round "1"]
[White "DrVelja"]
[Black "AquivaRubinstein"]
[Result "1/2-1/2"]
[WhiteElo "2549"]
[BlackElo "2274"]
[TimeControl "180+2"]
[EndTime "13:14:22 PST"]
[Termination "Game drawn by 50-move rule"]

1. e4 {[%clk 0:03:00]} 1... c5 {[%clk 0:03:00.4]} 2. Nf3 {[%clk 0:03:00.9]} 2...
d6 {[%clk 0:03:01.6]} 3. d4 {[%clk 0:03:02.5]} 3... cxd4 {[%clk 0:03:02.8]} 4.
Nxd4 {[%clk 0:03:04.2]} 4... Nf6 {[%clk 0:03:04.1]} 5. Nc3 {[%clk 0:03:05.9]}
5... a6 {[%clk 0:03:05.4]} 6. Bg5 {[%clk 0:03:07.5]} 6... e6 {[%clk 0:03:06.6]}
7. f4 {[%clk 0:03:08.7]} 7... h6 {[%clk 0:03:02.7]} 8. Bh4 {[%clk 0:03:09.4]}
8... Qb6 {[%clk 0:03:03.8]} 9. a3 {[%clk 0:03:10.9]} 9... Be7 {[%clk 0:03:03.3]}
10. Bf2 {[%clk 0:03:11.9]} 10... Qc7 {[%clk 0:03:04.3]} 11. Qf3 {[%clk
0:03:13.5]} 11... Nbd7 {[%clk 0:03:04.8]} 12. O-O-O {[%clk 0:03:14.2]} 12... b5
{[%clk 0:03:05.7]} 13. g4 {[%clk 0:03:15.8]} 13... Bb7 {[%clk 0:03:05.5]} 14.
Bg2 {[%clk 0:03:17.1]} 14... g5 {[%clk 0:03:05.9]} 15. h4 {[%clk 0:03:13]} 15...
gxf4 {[%clk 0:03:03.2]} 16. g5 {[%clk 0:03:11.1]} 16... Ne5 {[%clk 0:02:52.2]}
17. Qxf4 {[%clk 0:03:11.3]} 17... hxg5 {[%clk 0:02:52.8]} 18. hxg5 {[%clk
0:03:12.8]} 18... Rxh1 {[%clk 0:02:52.5]} 19. Rxh1 {[%clk 0:03:12.9]} 19... Nfd7
{[%clk 0:02:53.6]} 20. Kb1 {[%clk 0:02:05.9]} 20... O-O-O {[%clk 0:02:52.2]} 21.
Be3 {[%clk 0:01:53.8]} 21... Rg8 {[%clk 0:02:49.8]} 22. Rh5 {[%clk 0:01:55.1]}
22... Qd8 {[%clk 0:02:16.4]} 23. Bc1 {[%clk 0:01:50.5]} 23... Qf8 {[%clk
0:02:03.3]} 24. Bh3 {[%clk 0:01:43.7]} 24... Qg7 {[%clk 0:01:49.5]} 25. Bf1
{[%clk 0:01:17.7]} 25... Nc5 {[%clk 0:01:34.7]} 26. Nf3 {[%clk 0:01:06.9]} 26...
Ncd7 {[%clk 0:01:22.7]} 27. Nxe5 {[%clk 0:00:59.4]} 27... Nxe5 {[%clk
0:01:23.2]} 28. Be2 {[%clk 0:00:59.2]} 28... Rh8 {[%clk 0:01:21.6]} 29. Qh4
{[%clk 0:00:58.5]} 29... Rxh5 {[%clk 0:00:57.2]} 30. Qxh5 {[%clk 0:01:00.4]}
30... Kc7 {[%clk 0:00:47.5]} 31. Bf4 {[%clk 0:00:53.1]} 31... Ng6 {[%clk
0:00:43.8]} 32. Be3 {[%clk 0:00:53.7]} 32... Qh8 {[%clk 0:00:33]} 33. Qh6 {[%clk
0:00:53.4]} 33... Bf8 {[%clk 0:00:25]} 34. Qxh8 {[%clk 0:00:50.6]} 34... Nxh8
{[%clk 0:00:26.2]} 35. Kc1 {[%clk 0:00:35.3]} 35... Ng6 {[%clk 0:00:26.9]} 36.
Kd2 {[%clk 0:00:36.9]} 36... Bg7 {[%clk 0:00:28]} 37. Bd3 {[%clk 0:00:30.5]}
37... Ne5 {[%clk 0:00:28.7]} 38. Nd1 {[%clk 0:00:27.7]} 38... Kd7 {[%clk
0:00:22.7]} 39. Nf2 {[%clk 0:00:22.6]} 39... d5 {[%clk 0:00:17.3]} 40. exd5
{[%clk 0:00:20.9]} 40... Bxd5 {[%clk 0:00:18.3]} 41. b3 {[%clk 0:00:21.5]} 41...
Nf3+ {[%clk 0:00:14.8]} 42. Ke2 {[%clk 0:00:21.4]} 42... Bf8 {[%clk 0:00:12.9]}
43. Ne4 {[%clk 0:00:21]} 43... Ne5 {[%clk 0:00:07.3]} 44. Nf6+ {[%clk
0:00:21.8]} 44... Kc6 {[%clk 0:00:08.5]} 45. a4 {[%clk 0:00:22.5]} 45... Nxd3
{[%clk 0:00:06.7]} 46. axb5+ {[%clk 0:00:22.2]} 46... axb5 {[%clk 0:00:07.1]}
47. Kxd3 {[%clk 0:00:23.8]} 47... Be7 {[%clk 0:00:08.3]} 48. Ng4 {[%clk
0:00:17.2]} 48... Bd6 {[%clk 0:00:06.8]} 49. c4 {[%clk 0:00:16.9]} 49... bxc4+
{[%clk 0:00:07.9]} 50. bxc4 {[%clk 0:00:18.8]} 50... Bf3 {[%clk 0:00:09.3]} 51.
Nh6 {[%clk 0:00:20.3]} 51... Bh5 {[%clk 0:00:09.7]} 52. Ng8 {[%clk 0:00:21.6]}
52... Kd7 {[%clk 0:00:08.3]} 53. c5 {[%clk 0:00:22.5]} 53... Be7 {[%clk
0:00:08.9]} 54. Kc4 {[%clk 0:00:21.8]} 54... Bd8 {[%clk 0:00:09.4]} 55. Nh6
{[%clk 0:00:15.2]} 55... Kc6 {[%clk 0:00:09.2]} 56. Bf4 {[%clk 0:00:13.6]} 56...
Be7 {[%clk 0:00:09.3]} 57. Be3 {[%clk 0:00:15.1]} 57... Bf8 {[%clk 0:00:09.2]}
58. Ng8 {[%clk 0:00:13.6]} 58... Kd7 {[%clk 0:00:07.7]} 59. Nf6+ {[%clk
0:00:14.7]} 59... Kc6 {[%clk 0:00:08.8]} 60. Nxh5 {[%clk 0:00:16.6]} 60... Be7
{[%clk 0:00:10.2]} 61. Ng3 {[%clk 0:00:17.6]} 61... f5 {[%clk 0:00:08.2]} 62.
gxf6 {[%clk 0:00:17.4]} 62... Bxf6 {[%clk 0:00:09.3]} 63. Ne4 {[%clk 0:00:15.5]}
63... Be7 {[%clk 0:00:10.6]} 64. Bd4 {[%clk 0:00:14.7]} 64... Bf8 {[%clk
0:00:11.3]} 65. Be5 {[%clk 0:00:15.6]} 65... Be7 {[%clk 0:00:12.4]} 66. Bd6
{[%clk 0:00:16.3]} 66... Bh4 {[%clk 0:00:11]} 67. Nd2 {[%clk 0:00:17.5]} 67...
Bf2 {[%clk 0:00:11.1]} 68. Nb3 {[%clk 0:00:19.1]} 68... Bxc5 {[%clk 0:00:11]}
69. Bxc5 {[%clk 0:00:21]} 69... e5 {[%clk 0:00:11.9]} 70. Nd2 {[%clk 0:00:21.4]}
70... Kd7 {[%clk 0:00:12.6]} 71. Kd5 {[%clk 0:00:22.9]} 71... e4 {[%clk
0:00:13]} 72. Nxe4 {[%clk 0:00:24.5]} 72... Kc7 {[%clk 0:00:14.4]} 73. Bd6+
{[%clk 0:00:24.5]} 73... Kb7 {[%clk 0:00:15.7]} 74. Kc5 {[%clk 0:00:24.8]} 74...
Ka6 {[%clk 0:00:17]} 75. Kc6 {[%clk 0:00:25.4]} 75... Ka7 {[%clk 0:00:18.3]} 76.
Bc5+ {[%clk 0:00:24.3]} 76... Ka6 {[%clk 0:00:19.1]} 77. Nc3 {[%clk 0:00:18.1]}
77... Ka5 {[%clk 0:00:20.3]} 78. Bd6 {[%clk 0:00:18.3]} 78... Ka6 {[%clk
0:00:21.6]} 79. Bc5 {[%clk 0:00:06.7]} 79... Ka5 {[%clk 0:00:22.1]} 80. Nd5
{[%clk 0:00:08]} 80... Ka6 {[%clk 0:00:23.2]} 81. Nc7+ {[%clk 0:00:09.5]} 81...
Ka5 {[%clk 0:00:24.6]} 82. Kd5 {[%clk 0:00:11]} 82... Ka4 {[%clk 0:00:24.9]} 83.
Kc4 {[%clk 0:00:12.2]} 83... Ka5 {[%clk 0:00:26.1]} 84. Bb4+ {[%clk 0:00:13.5]}
84... Kb6 {[%clk 0:00:27.1]} 85. Nd5+ {[%clk 0:00:13.7]} 85... Kc6 {[%clk
0:00:28.4]} 86. Bd2 {[%clk 0:00:12.2]} 86... Kd6 {[%clk 0:00:29.4]} 87. Bf4+
{[%clk 0:00:13.8]} 87... Kc6 {[%clk 0:00:30.6]} 88. Kd4 {[%clk 0:00:13]} 88...
Kb5 {[%clk 0:00:31.6]} 89. Nc3+ {[%clk 0:00:13.9]} 89... Kc6 {[%clk 0:00:32.9]}
90. Kc4 {[%clk 0:00:14.6]} 90... Kb6 {[%clk 0:00:34]} 91. Kd5 {[%clk 0:00:15.3]}
91... Kb7 {[%clk 0:00:35.1]} 92. Kc5 {[%clk 0:00:16]} 92... Ka6 {[%clk
0:00:35.3]} 93. Bc7 {[%clk 0:00:14.4]} 93... Kb7 {[%clk 0:00:36.6]} 94. Kd6
{[%clk 0:00:15.9]} 94... Ka6 {[%clk 0:00:37.8]} 95. Kc6 {[%clk 0:00:17.2]} 95...
Ka7 {[%clk 0:00:38.6]} 96. Nd5 {[%clk 0:00:17.5]} 96... Ka6 {[%clk 0:00:39.6]}
97. Bd8 {[%clk 0:00:17.1]} 97... Ka7 {[%clk 0:00:40.9]} 98. Bg5 {[%clk
0:00:15.1]} 98... Ka6 {[%clk 0:00:42.1]} 99. Be3 {[%clk 0:00:15.3]} 99... Ka5
{[%clk 0:00:42.4]} 100. Bd4 {[%clk 0:00:08.7]} 100... Ka6 {[%clk 0:00:43.6]}
101. Nc7+ {[%clk 0:00:10]} 101... Ka5 {[%clk 0:00:44.1]} 102. Kc5 {[%clk
0:00:11.5]} 102... Ka4 {[%clk 0:00:44.8]} 103. Kc4 {[%clk 0:00:11.8]} 103... Ka5
{[%clk 0:00:45.9]} 104. Be3 {[%clk 0:00:11.7]} 104... Ka4 {[%clk 0:00:45.8]}
105. Bb6 {[%clk 0:00:13.3]} 105... Ka3 {[%clk 0:00:46.7]} 106. Nb5+ {[%clk
0:00:10.6]} 106... Ka4 {[%clk 0:00:47.8]} 107. Nc3+ {[%clk 0:00:11.2]} 107...
Ka3 {[%clk 0:00:49.2]} 108. Bc5+ {[%clk 0:00:12.4]} 108... Kb2 {[%clk
0:00:49.4]} 109. Kd3 {[%clk 0:00:13.9]} 109... Kb3 {[%clk 0:00:50.4]} 110. Be7
{[%clk 0:00:14.8]} 110... Kb2 {[%clk 0:00:51]} 111. Kc4 {[%clk 0:00:14.4]}
111... Kc2 {[%clk 0:00:52]} 112. Bg5 {[%clk 0:00:16.1]} 112... Kb2 {[%clk
0:00:51.9]} 113. Nb5 {[%clk 0:00:16.5]} 113... Kc2 {[%clk 0:00:53.1]} 114. Nd4+
{[%clk 0:00:17.5]} 114... Kd1 {[%clk 0:00:52.3]} 115. Bh4 {[%clk 0:00:13.5]}
115... Kd2 {[%clk 0:00:52.5]} 116. Bg5+ {[%clk 0:00:08.5]} 116... Ke1 {[%clk
0:00:53.4]} 117. Kd3 {[%clk 0:00:09.8]} 117... Kf1 {[%clk 0:00:54.5]} 118. Ke4
{[%clk 0:00:09.6]} 118... Kg2 {[%clk 0:00:55.5]} 119. Be3 {[%clk 0:00:10.2]}
119... Kh3 {[%clk 0:00:54.3]} 120. Ne6 {[%clk 0:00:09.7]} 120... Kg2 {[%clk
0:00:55.4]} 121. Kf4 {[%clk 0:00:10.5]} 121... Kh3 {[%clk 0:00:56.6]} 122. Kf3
{[%clk 0:00:11]} 122... Kh2 {[%clk 0:00:57.6]} 123. Nf4 {[%clk 0:00:09.3]}
123... Kh1 {[%clk 0:00:58.3]} 124. Nd3 {[%clk 0:00:10.8]} 124... Kh2 {[%clk
0:00:59.4]} 125. Nf2 {[%clk 0:00:12.2]} 125... Kg1 {[%clk 0:00:59.6]} 126. Ng4+
{[%clk 0:00:12.8]} 126... Kh1 {[%clk 0:01:00.5]} 1/2-1/2

[Event "*** MasterClass Titled Tuesday Blitz"]
[Site "Chess.com"]
[Date "2017.12.12"]
[Round "2"]
[White "benhal"]
[Black "Penguininja"]
[Result "1-0"]
[WhiteElo "2268"]
[BlackElo "2389"]
[TimeControl "180+2"]
[EndTime "13:17:38 PST"]
[Termination "benhal won by resignation"]

1. e4 {[%clk 0:03:00.3]} 1... e5 {[%clk 0:02:34.4]} 2. Nf3 {[%clk 0:02:57.8]}
2... Nc6 {[%clk 0:02:34.8]} 3. Nc3 {[%clk 0:02:58.6]} 3... Nf6 {[%clk
0:02:35.4]} 4. Bb5 {[%clk 0:02:59.2]} 4... Bd6 {[%clk 0:02:36]} 5. d3 {[%clk
0:02:59.4]} 5... a6 {[%clk 0:02:36.6]} 6. Ba4 {[%clk 0:02:59.2]} 6... h6 {[%clk
0:02:31.3]} 7. a3 {[%clk 0:02:59.6]} 7... O-O {[%clk 0:02:19.7]} 8. g4 {[%clk
0:03:00.1]} 8... b5 {[%clk 0:02:18.6]} 9. Bb3 {[%clk 0:03:00.8]} 9... Nd4 {[%clk
0:02:19.5]} 10. Ba2 {[%clk 0:02:40.6]} 10... Nxf3+ {[%clk 0:02:10.3]} 11. Qxf3
{[%clk 0:02:40.8]} 11... Nh7 {[%clk 0:02:12.2]} 12. h4 {[%clk 0:02:40]} 12...
Be7 {[%clk 0:02:00.9]} 13. g5 {[%clk 0:02:36.9]} 13... hxg5 {[%clk 0:02:02.8]}
14. hxg5 {[%clk 0:02:37.5]} 14... Bxg5 {[%clk 0:02:02.4]} 15. Qh5 {[%clk
0:02:34.7]} 15... Bh6 {[%clk 0:01:56.2]} 16. Bxh6 {[%clk 0:02:34.1]} 1-0

[Event "*** MasterClass Titled Tuesday Blitz"]
[Site "Chess.com"]
[Date "2017.12.12"]
[Round "2"]
[White "toad"]
[Black "SidArun"]
[Result "1-0"]
[WhiteElo "2188"]
[BlackElo "2179"]
[TimeControl "180+2"]
[EndTime "13:18:11 PST"]
[Termination "toad won by resignation"]

1. d4 {[%clk 0:03:01.9]} 1... Nf6 {[%clk 0:03:00.6]} 2. c4 {[%clk 0:03:03]} 2...
c5 {[%clk 0:03:02]} 3. d5 {[%clk 0:03:03.9]} 3... e6 {[%clk 0:03:03.6]} 4. Nc3
{[%clk 0:03:04.7]} 4... exd5 {[%clk 0:03:05]} 5. cxd5 {[%clk 0:03:06.6]} 5... d6
{[%clk 0:03:06.3]} 6. e4 {[%clk 0:03:07.6]} 6... g6 {[%clk 0:03:07.8]} 7. Nge2
{[%clk 0:03:08.2]} 7... Bg7 {[%clk 0:03:09.3]} 8. Ng3 {[%clk 0:03:09.1]} 8... h5
{[%clk 0:03:08.3]} 9. Be2 {[%clk 0:03:09.4]} 9... h4 {[%clk 0:03:09.2]} 10. Nf1
{[%clk 0:03:10.3]} 10... O-O {[%clk 0:03:09.4]} 11. Ne3 {[%clk 0:03:08.2]} 11...
h3 {[%clk 0:03:10.1]} 12. g4 {[%clk 0:03:06.2]} 12... Re8 {[%clk 0:03:09.6]} 13.
f3 {[%clk 0:03:05]} 13... Nfd7 {[%clk 0:02:57.2]} 14. O-O {[%clk 0:02:55.4]}
14... f5 {[%clk 0:02:56.5]} 15. gxf5 {[%clk 0:02:36]} 15... Bd4 {[%clk
0:02:57.3]} 16. Kh1 {[%clk 0:02:32.1]} 16... Bxe3 {[%clk 0:02:48.1]} 17. Bxe3
{[%clk 0:02:32.8]} 17... gxf5 {[%clk 0:02:50]} 18. Rg1+ {[%clk 0:02:15.4]} 18...
Kh8 {[%clk 0:02:48.5]} 19. Rg3 {[%clk 0:02:15.9]} 19... Ne5 {[%clk 0:02:38.7]}
20. Rxh3+ {[%clk 0:02:13.6]} 20... Kg7 {[%clk 0:02:39.7]} 21. Qg1+ {[%clk
0:02:13.9]} 21... Ng6 {[%clk 0:02:40.4]} 22. Bh6+ {[%clk 0:01:52.6]} 22... Kf7
{[%clk 0:02:40.4]} 23. Bg5 {[%clk 0:01:53.7]} 1-0

[Event "*** MasterClass Titled Tuesday Blitz"]
[Site "Chess.com"]
[Date "2017.12.12"]
[Round "2"]
[White "daro94"]
[Black "Fighterman91"]
[Result "1-0"]
[WhiteElo "2653"]
[BlackElo "2484"]
[TimeControl "180+2"]
[EndTime "13:18:54 PST"]
[Termination "daro94 won on time"]

1. e4 {[%clk 0:03:01.9]} 1... c5 {[%clk 0:02:38.7]} 2. Nf3 {[%clk 0:03:02.6]}
2... d6 {[%clk 0:01:52.6]} 3. Bb5+ {[%clk 0:02:59.8]} 3... Nd7 {[%clk
0:01:52.4]} 4. c3 {[%clk 0:02:56.1]} 4... Nf6 {[%clk 0:01:52.2]} 5. Qe2 {[%clk
0:02:57.4]} 5... e6 {[%clk 0:01:53]} 6. O-O {[%clk 0:02:58.4]} 6... a6 {[%clk
0:01:53.7]} 7. Ba4 {[%clk 0:02:59.6]} 7... b5 {[%clk 0:01:52.8]} 8. Bc2 {[%clk
0:03:00.8]} 8... Bb7 {[%clk 0:01:51.3]} 9. d4 {[%clk 0:03:01.9]} 9... Be7 {[%clk
0:01:36.9]} 10. Re1 {[%clk 0:02:59.6]} 10... cxd4 {[%clk 0:00:34.2]} 11. cxd4
{[%clk 0:03:00.3]} 11... O-O {[%clk 0:00:30]} 12. Nbd2 {[%clk 0:02:59.4]} 12...
e5 {[%clk 0:00:09.2]} 13. d5 {[%clk 0:02:56.6]} 1-0

[Event "*** MasterClass Titled Tuesday Blitz"]
[Site "Chess.com"]
[Date "2017.12.12"]
[Round "2"]
[White "AkshatChandra"]
[Black "JohanSalomon"]
[Result "1-0"]
[WhiteElo "2732"]
[BlackElo "2509"]
[TimeControl "180+2"]
[EndTime "13:18:56 PST"]
[Termination "AkshatChandra won by resignation"]

1. d4 {[%clk 0:03:00]} 1... Nf6 {[%clk 0:03:00.6]} 2. c4 {[%clk 0:03:00.9]} 2...
e6 {[%clk 0:03:01.7]} 3. Nc3 {[%clk 0:02:59.8]} 3... Bb4 {[%clk 0:03:02]} 4. Nf3
{[%clk 0:03:01.5]} 4... d5 {[%clk 0:02:58.5]} 5. Qa4+ {[%clk 0:02:55.7]} 5...
Nc6 {[%clk 0:02:59.3]} 6. e3 {[%clk 0:02:57]} 6... O-O {[%clk 0:02:58.8]} 7. Bd2
{[%clk 0:02:57.5]} 7... Bd7 {[%clk 0:02:59.7]} 8. Qc2 {[%clk 0:02:56]} 8... dxc4
{[%clk 0:03:00.2]} 9. Bxc4 {[%clk 0:02:57.9]} 9... Bd6 {[%clk 0:03:01.1]} 10.
O-O {[%clk 0:02:53.4]} 10... e5 {[%clk 0:03:01.1]} 11. a3 {[%clk 0:02:48.6]}
11... a6 {[%clk 0:02:40.5]} 12. h3 {[%clk 0:02:45.1]} 12... h6 {[%clk
0:02:15.5]} 13. Rad1 {[%clk 0:02:43.6]} 13... exd4 {[%clk 0:01:52.3]} 14. exd4
{[%clk 0:02:41.9]} 14... Ne7 {[%clk 0:01:51.6]} 15. Ne5 {[%clk 0:02:33]} 15...
b5 {[%clk 0:01:14.1]} 16. Ba2 {[%clk 0:02:32.8]} 16... Bf5 {[%clk 0:01:13.9]}
17. Qc1 {[%clk 0:02:27.7]} 17... c6 {[%clk 0:01:11]} 18. Rfe1 {[%clk 0:02:19.3]}
18... Ned5 {[%clk 0:01:10.2]} 19. Nxc6 {[%clk 0:02:07.9]} 19... Qd7 {[%clk
0:01:11.2]} 1-0

[Event "*** MasterClass Titled Tuesday Blitz"]
[Site "Chess.com"]
[Date "2017.12.12"]
[Round "2"]
[White "BartoszSocko"]
[Black "jbj"]
[Result "1-0"]
[WhiteElo "2534"]
[BlackElo "2280"]
[TimeControl "180+2"]
[EndTime "13:19:52 PST"]
[Termination "BartoszSocko won by resignation"]

1. e4 {[%clk 0:03:01.9]} 1... d5 {[%clk 0:02:59.5]} 2. exd5 {[%clk 0:03:02.6]}
2... Qxd5 {[%clk 0:03:01.4]} 3. Nc3 {[%clk 0:03:03.8]} 3... Qd8 {[%clk
0:03:02.4]} 4. d4 {[%clk 0:03:03.7]} 4... Nf6 {[%clk 0:03:03.4]} 5. g3 {[%clk
0:03:02.1]} 5... c6 {[%clk 0:03:01.7]} 6. Bg2 {[%clk 0:03:03]} 6... Bg4 {[%clk
0:03:01]} 7. Nge2 {[%clk 0:03:02.9]} 7... e6 {[%clk 0:03:02.1]} 8. h3 {[%clk
0:03:04]} 8... Bf5 {[%clk 0:02:59.9]} 9. O-O {[%clk 0:03:02.8]} 9... h5 {[%clk
0:02:58.6]} 10. Bg5 {[%clk 0:03:00.9]} 10... Be7 {[%clk 0:02:59.4]} 11. Re1
{[%clk 0:02:51.2]} 11... Nbd7 {[%clk 0:03:00.3]} 12. Nf4 {[%clk 0:02:50.9]}
12... Qb6 {[%clk 0:02:43.1]} 13. Na4 {[%clk 0:02:46.1]} 13... Qc7 {[%clk
0:02:37.8]} 14. c4 {[%clk 0:02:44]} 14... Nb6 {[%clk 0:01:56.8]} 15. Rc1 {[%clk
0:02:39.8]} 15... Nxa4 {[%clk 0:01:51.4]} 16. Qxa4 {[%clk 0:02:39.9]} 16... O-O
{[%clk 0:01:35.2]} 17. d5 {[%clk 0:02:35.8]} 17... e5 {[%clk 0:01:35]} 18. Bxf6
{[%clk 0:02:30]} 18... gxf6 {[%clk 0:01:21.1]} 19. Nxh5 {[%clk 0:02:26.1]} 19...
Bg6 {[%clk 0:01:19.4]} 20. Bf3 {[%clk 0:02:17.1]} 20... e4 {[%clk 0:01:10.1]}
21. Rxe4 {[%clk 0:02:17.2]} 21... Bxe4 {[%clk 0:01:09.3]} 22. Bxe4 {[%clk
0:02:19.1]} 22... Qe5 {[%clk 0:01:09.8]} 23. Bf3 {[%clk 0:02:15.6]} 23... cxd5
{[%clk 0:01:07.5]} 24. cxd5 {[%clk 0:02:15.9]} 24... Rac8 {[%clk 0:01:08.2]} 25.
Qg4+ {[%clk 0:02:06.5]} 25... Qg5 {[%clk 0:01:07.7]} 26. Rxc8 {[%clk 0:02:07.2]}
26... Rxc8 {[%clk 0:00:59.2]} 27. Qxc8+ {[%clk 0:02:07.2]} 27... Kh7 {[%clk
0:01:01.1]} 28. h4 {[%clk 0:01:58.3]} 1-0

[Event "*** MasterClass Titled Tuesday Blitz"]
[Site "Chess.com"]
[Date "2017.12.12"]
[Round "2"]
[White "NateSolon"]
[Black "twitchTriniCupid"]
[Result "1-0"]
[WhiteElo "2352"]
[BlackElo "2228"]
[TimeControl "180+2"]
[EndTime "13:20:04 PST"]
[Termination "NateSolon won by resignation"]

1. e4 {[%clk 0:03:01.9]} 1... c6 {[%clk 0:02:55.9]} 2. Bc4 {[%clk 0:03:01.8]}
2... d5 {[%clk 0:02:57.8]} 3. Bb3 {[%clk 0:03:02.7]} 3... a5 {[%clk 0:02:57.9]}
4. a3 {[%clk 0:02:57.1]} 4... a4 {[%clk 0:02:56.4]} 5. Ba2 {[%clk 0:02:58.2]}
5... dxe4 {[%clk 0:02:55.6]} 6. Qh5 {[%clk 0:02:58.5]} 6... g6 {[%clk
0:02:52.3]} 7. Qh4 {[%clk 0:02:59]} 7... Bg7 {[%clk 0:02:44.7]} 8. Nc3 {[%clk
0:02:56]} 8... Nf6 {[%clk 0:02:42.7]} 9. f3 {[%clk 0:02:35.4]} 9... exf3 {[%clk
0:02:41.5]} 10. Nxf3 {[%clk 0:02:35.8]} 10... O-O {[%clk 0:02:40.6]} 11. d4
{[%clk 0:02:36.4]} 11... Bf5 {[%clk 0:02:04.2]} 12. Bh6 {[%clk 0:02:36.7]} 12...
Bxh6 {[%clk 0:01:55.9]} 13. Qxh6 {[%clk 0:02:37.3]} 13... Ng4 {[%clk 0:01:56.9]}
14. Qd2 {[%clk 0:02:34.5]} 14... e5 {[%clk 0:01:40.1]} 15. h3 {[%clk 0:02:29.6]}
15... Nf6 {[%clk 0:01:30.2]} 16. Nxe5 {[%clk 0:02:28.5]} 16... Nbd7 {[%clk
0:01:30.3]} 17. O-O-O {[%clk 0:02:18.3]} 17... Nxe5 {[%clk 0:01:05.2]} 18. dxe5
{[%clk 0:02:20.2]} 18... Ne4 {[%clk 0:01:01.4]} 19. Nxe4 {[%clk 0:01:58]} 19...
Bxe4 {[%clk 0:01:02.2]} 20. Qf4 {[%clk 0:01:58.9]} 20... Bd5 {[%clk 0:00:59.8]}
21. c4 {[%clk 0:01:58.8]} 21... Rc8 {[%clk 0:00:52.5]} 22. cxd5 {[%clk
0:01:57.9]} 22... cxd5+ {[%clk 0:00:54.4]} 23. Kb1 {[%clk 0:01:58.9]} 23... Qc7
{[%clk 0:00:52.7]} 24. Bxd5 {[%clk 0:01:51.8]} 24... Qc2+ {[%clk 0:00:50.2]} 25.
Ka1 {[%clk 0:01:52.2]} 25... Qe2 {[%clk 0:00:48.5]} 26. Rhe1 {[%clk 0:01:50.2]}
26... Qb5 {[%clk 0:00:47.5]} 27. e6 {[%clk 0:01:47.9]} 1-0

[Event "*** MasterClass Titled Tuesday Blitz"]
[Site "Chess.com"]
[Date "2017.12.12"]
[Round "2"]
[White "liquormark"]
[Black "PinguInTheCity"]
[Result "0-1"]
[WhiteElo "2009"]
[BlackElo "2003"]
[TimeControl "180+2"]
[EndTime "13:20:07 PST"]
[Termination "PinguInTheCity won by resignation"]

1. c4 {[%clk 0:03:01.9]} 1... Nf6 {[%clk 0:02:54.9]} 2. Nc3 {[%clk 0:03:02]}
2... e5 {[%clk 0:02:54.8]} 3. g3 {[%clk 0:03:00.2]} 3... a6 {[%clk 0:02:54.1]}
4. Bg2 {[%clk 0:03:00.7]} 4... Bc5 {[%clk 0:02:54.8]} 5. Nf3 {[%clk 0:03:01.5]}
5... d6 {[%clk 0:02:55.8]} 6. O-O {[%clk 0:03:02]} 6... Nc6 {[%clk 0:02:56.7]}
7. d3 {[%clk 0:02:59.3]} 7... h6 {[%clk 0:02:56.4]} 8. e3 {[%clk 0:03:00]} 8...
Ba7 {[%clk 0:02:56.8]} 9. Rb1 {[%clk 0:02:58]} 9... O-O {[%clk 0:02:56.8]} 10.
b4 {[%clk 0:02:58.8]} 10... Be6 {[%clk 0:02:57.8]} 11. Qe2 {[%clk 0:02:27.8]}
11... Qc8 {[%clk 0:02:51.3]} 12. Rd1 {[%clk 0:02:27.3]} 12... Bh3 {[%clk
0:02:50.2]} 13. d4 {[%clk 0:02:25.4]} 13... exd4 {[%clk 0:02:46.4]} 14. exd4
{[%clk 0:02:25.7]} 14... Re8 {[%clk 0:02:47.5]} 15. Qf1 {[%clk 0:02:05.1]} 15...
Bg4 {[%clk 0:02:19.3]} 16. c5 {[%clk 0:02:02.7]} 16... Qf5 {[%clk 0:02:18.7]}
17. Nh4 {[%clk 0:01:42]} 17... Qh5 {[%clk 0:02:12.6]} 18. f3 {[%clk 0:01:24]}
18... Bd7 {[%clk 0:02:12.9]} 19. Qd3 {[%clk 0:01:20]} 19... a5 {[%clk
0:02:07.9]} 20. b5 {[%clk 0:01:17]} 20... Nb4 {[%clk 0:02:08.6]} 21. Rxb4 {[%clk
0:00:19.8]} 21... axb4 {[%clk 0:02:09.3]} 22. Ne2 {[%clk 0:00:20.3]} 22... dxc5
{[%clk 0:02:10.1]} 23. g4 {[%clk 0:00:21.7]} 23... Qxh4 {[%clk 0:02:10.6]} 0-1

[Event "*** MasterClass Titled Tuesday Blitz"]
[Site "Chess.com"]
[Date "2017.12.12"]
[Round "2"]
[White "juniortay"]
[Black "DrVelja"]
[Result "0-1"]
[WhiteElo "2325"]
[BlackElo "2553"]
[TimeControl "180+2"]
[EndTime "13:20:17 PST"]
[Termination "DrVelja won by resignation"]

1. e4 {[%clk 0:03:01.9]} 1... c5 {[%clk 0:03:00.6]} 2. Nc3 {[%clk 0:03:01.6]}
2... Nc6 {[%clk 0:03:01.8]} 3. f4 {[%clk 0:03:02.6]} 3... g6 {[%clk 0:03:03.2]}
4. Nf3 {[%clk 0:03:03.9]} 4... Bg7 {[%clk 0:03:04.7]} 5. Bb5 {[%clk 0:03:05.3]}
5... Nd4 {[%clk 0:03:00]} 6. O-O {[%clk 0:03:06.1]} 6... Nxb5 {[%clk 0:02:57.3]}
7. Nxb5 {[%clk 0:03:08]} 7... d5 {[%clk 0:02:57.9]} 8. e5 {[%clk 0:03:05.8]}
8... d4 {[%clk 0:02:54.8]} 9. a4 {[%clk 0:03:03.9]} 9... Nh6 {[%clk 0:02:50]}
10. Qe1 {[%clk 0:02:55.7]} 10... O-O {[%clk 0:02:46.1]} 11. d3 {[%clk
0:02:52.7]} 11... Nf5 {[%clk 0:02:40.6]} 12. g4 {[%clk 0:02:49.8]} 12... Ne3
{[%clk 0:02:39.1]} 13. Bxe3 {[%clk 0:02:45.6]} 13... dxe3 {[%clk 0:02:41]} 14.
h3 {[%clk 0:02:37.2]} 14... b6 {[%clk 0:02:16.8]} 15. Qxe3 {[%clk 0:02:34.5]}
15... Bb7 {[%clk 0:02:18.3]} 16. Nc3 {[%clk 0:02:22.2]} 16... f6 {[%clk
0:02:06.3]} 17. Nd2 {[%clk 0:02:04.9]} 17... fxe5 {[%clk 0:01:39.8]} 18. fxe5
{[%clk 0:01:57.4]} 18... Qd4 {[%clk 0:01:40.8]} 19. Qxd4 {[%clk 0:00:54.7]}
19... cxd4 {[%clk 0:01:41.5]} 20. Nce4 {[%clk 0:00:56.1]} 20... Bxe5 {[%clk
0:01:38.3]} 21. Rxf8+ {[%clk 0:00:42.2]} 21... Rxf8 {[%clk 0:01:37.7]} 22. Rf1
{[%clk 0:00:42.5]} 22... Bf4 {[%clk 0:01:38.1]} 23. Kg2 {[%clk 0:00:38.8]} 23...
Bxd2 {[%clk 0:01:37.8]} 0-1